bitfinex-derivatives/quotes_BNBF0:USTF0_20250211
["timestamp","ask_amount","ask_price","bid_price","bid_amount"]
[1739286217750,0.31434678,636.24,635.06,1.16597008]
[1739286217751,0.31434678,636.24,635.07,0.28889393]
[1739286218448,0.31434678,636.24,635.08,0.28893127]
[1739286218648,0.31434678,636.24,635.03,0.28893127]
[1739286220144,0.31434678,636.24,635.02,1.16597008]
[1739286220349,0.31434678,636.24,635.03,0.28900564]
[1739286221050,0.31434678,636.24,635.02,1.16597008]
[1739286222042,0.31434678,636.24,635.03,0.28901084]
[1739286223443,0.31434678,636.24,634.9,0.28901084]
[1739286223748,0.31434678,636.24,634.89,0.31501519]
[1739286223749,0.31434678,636.24,634.91,0.28901084]
[1739286223946,0.31434678,636.24,634.9,0.28901084]
[1739286224147,0.31434678,636.24,634.91,0.28901084]
[1739286224345,0.31434678,636.24,634.92,0.28901084]
[1739286224548,0.31434678,636.24,634.9,0.28901084]
[1739286224750,0.26866082,636.23,634.91,0.28901084]
[1739286224948,0.31434678,636.24,634.92,0.28901084]
[1739286225250,0.26866546,636.23,634.93,0.28901084]
[1739286225451,0.26866546,636.23,634.9,0.28901084]
[1739286225651,0.26866546,636.23,634.94,0.28901084]
[1739286225851,0.26866546,636.23,634.89,0.31501519]
[1739286225852,0.26866546,636.23,634.95,0.28901084]
[1739286226047,0.26866546,636.23,634.9,0.28901084]
[1739286226353,0.26866546,636.23,634.91,0.28901084]
[1739286226548,0.31436161,636.21,634.9,0.28901084]
[1739286226750,0.31436161,636.21,634.91,0.28901084]
[1739286227052,0.31436161,636.21,634.92,0.28901084]
[1739286227253,0.31436161,636.21,634.9,0.28901084]
[1739286227554,0.31436161,636.21,634.89,1.16597008]
[1739286227746,0.31436161,636.21,634.9,0.28903074]
[1739286228553,0.31436161,636.21,634.8,0.28903074]
[1739286228748,0.31436161,636.21,634.81,0.28903074]
[1739286228953,0.31436161,636.21,634.82,0.28903074]
[1739286229152,0.31436161,636.21,634.8,0.28903074]
[1739286229454,0.31436161,636.21,634.79,1.16597008]
[1739286229656,0.31436161,636.21,634.8,0.2890295]
[1739286230957,0.31436161,636.21,634.81,0.60408439]
[1739286231159,0.31436161,636.21,634.82,0.60407943]
[1739286231457,0.31436161,636.21,634.83,0.60407447]
[1739286231656,0.31436161,636.21,634.78,0.61720696]
[1739286231657,0.31436161,636.21,634.84,0.60406951]
[1739286231858,0.31436161,636.21,634.85,0.60406454]
[1739286232058,0.31436161,636.21,634.86,0.90623646]
[1739286232256,0.31436161,636.21,635.19,1.16597008]
[1739286232458,0.31436161,636.21,635.2,0.2890295]
[1739286233158,0.31436161,636.21,635.21,0.28891416]
[1739286233358,0.31436161,636.21,635.2,0.28891416]
[1739286233556,0.31436161,636.21,635.21,0.28891416]
[1739286233857,0.31436161,636.21,635.2,0.28891416]
[1739286234059,0.31436161,636.21,635.21,0.28891416]
[1739286234261,0.31436161,636.21,635.2,0.28891416]
[1739286235760,0.31436161,636.21,635.21,0.28891416]
[1739286235962,0.31436161,636.21,635.16,0.28891416]
[1739286236160,0.31436161,636.21,635.17,0.28891416]
[1739286236356,0.31436161,636.21,635.16,0.28891416]
[1739286236559,0.31436161,636.21,635.17,0.28891416]
[1739286236760,0.31436161,636.21,635.16,0.28891416]
[1739286236958,0.31436161,636.21,635.17,0.28891416]
[1739286237257,0.31436161,636.21,635.18,0.28891416]
[1739286237562,0.31436161,636.21,634.85,1.48074273]
[1739286237563,0.31436161,636.21,635.19,0.28891416]
[1739286237767,0.31436161,636.21,635.07,0.28891416]
[1739286238062,0.31436161,636.21,635.08,0.28891416]
[1739286238262,0.31436161,636.21,635.07,0.28891416]
[1739286238460,0.31436161,636.21,635.08,0.28891416]
[1739286238661,0.31436161,636.21,635.09,0.28891416]
[1739286238859,0.31436161,636.21,635.07,0.28891416]
[1739286239056,0.31436161,636.21,635.08,0.28892653]
[1739286239260,0.31436161,636.21,635.07,0.28892653]
[1739286239457,0.31436161,636.21,635.06,1.16597008]
[1739286239458,0.31436161,636.21,635.08,0.28892653]
[1739286239658,0.31436161,636.21,635.07,0.28892653]
[1739286239858,0.31436161,636.21,635.08,0.28892653]
[1739286240062,0.31436161,636.21,635.02,0.28892653]
[1739286240260,0.31436161,636.21,635.03,0.28892653]
[1739286240458,0.31436161,636.21,635.02,0.28892653]
[1739286240663,0.31436161,636.21,635.02,0.90612095]
[1739286241263,0.31436161,636.21,635.02,0.28892653]
[1739286242064,0.31436161,636.21,635.06,1.16597008]
[1739286242263,0.31436161,636.21,635.07,0.90615135]
[1739286242664,0.31436161,636.21,635.07,0.28892653]
[1739286243662,0.31436161,636.21,635.06,1.16597008]
[1739286243865,0.31436161,636.21,635.07,0.28896393]
[1739286244666,0.31436161,636.21,635.0,1.16597008]
[1739286244859,0.31436161,636.21,635.01,0.28894329]
[1739286247067,0.31436161,636.21,635.02,0.28894329]
[1739286247369,0.31436161,636.21,635.03,0.28894329]
[1739286247568,0.31436161,636.21,634.86,0.28894329]
[1739286247761,0.31436161,636.21,634.87,0.28894329]
[1739286247965,0.31436161,636.21,634.88,0.28894329]
[1739286248166,0.31436161,636.21,634.86,0.28894329]
[1739286248366,0.31436161,636.21,634.87,0.28894329]
[1739286248665,0.31436161,636.21,634.85,0.31503504]
[1739286248666,0.31436161,636.21,634.88,0.28894329]
[1739286248861,0.31436161,636.21,634.86,0.28894329]
[1739286249067,0.31436161,636.21,634.85,0.31503504]
[1739286249068,0.31436161,636.21,634.87,0.28895031]
[1739286249266,0.31436161,636.21,634.86,0.28895031]
[1739286249467,0.31436161,636.21,634.87,0.28895031]
[1739286249668,0.31436161,636.21,634.86,0.28895031]
[1739286249869,0.31436161,636.21,634.87,0.28895031]
[1739286250070,0.31436161,636.21,634.86,0.28895031]
[1739286253272,0.31436161,636.21,635.0,1.16597008]
[1739286253474,0.31436161,636.21,635.01,0.28895031]
[1739286253873,0.2684226,636.2,635.0,1.16597008]
[1739286254473,0.31437643,636.18,635.0,1.16597008]
[1739286254868,0.2684226,636.17,635.0,1.16597008]
[1739286255072,0.31439125,636.15,635.0,1.16597008]
[1739286255271,0.2684226,636.14,635.0,1.16597008]
[1739286255770,0.2684226,636.14,634.68,1.16597008]
[1739286255971,0.31440608,636.12,634.69,0.2891701]
[1739286256170,0.2684226,636.11,634.69,0.2891701]
[1739286256369,0.31442091,636.09,634.68,1.16597008]
[1739286256675,0.26829451,636.08,634.69,0.28918581]
[1739286257071,0.31443574,636.06,634.69,0.28918581]
[1739286257267,0.26829451,636.05,634.69,0.28918581]
[1739286257975,0.31445057,636.03,634.69,0.28918581]
[1739286258276,0.26829451,636.02,634.69,0.28918581]
[1739286258677,0.3144654,636.0,634.69,0.28918581]
[1739286258876,0.26829451,635.99,634.32,0.90689068]
[1739286259074,0.31448024,635.97,634.33,0.28918581]
[1739286259272,0.26829451,635.96,634.32,0.90689068]
[1739286259473,0.31449507,635.94,634.33,0.28918581]
[1739286259673,0.26829451,635.93,634.34,0.28918581]
[1739286259872,0.31450991,635.91,634.32,0.28918581]
[1739286260080,0.31450991,635.91,634.33,0.28918581]
[1739286260281,0.26815067,635.9,634.34,0.28922263]
[1739286260578,0.31452475,635.88,634.35,0.28922263]
[1739286260777,0.26815067,635.87,634.36,0.28922263]
[1739286260973,0.31453959,635.85,634.32,0.90701468]
[1739286261174,0.26815067,635.84,634.33,0.28922263]
[1739286261479,0.31455443,635.82,634.34,0.28922263]
[1739286261677,0.31455443,635.82,634.35,0.28922263]
[1739286261873,0.31455443,635.82,634.15,1.16597008]
[1739286262072,0.26812647,635.81,634.16,1.22239031]
[1739286262279,0.31456927,635.79,634.17,0.60459866]
[1739286262477,0.31456927,635.79,634.18,0.60459369]
[1739286262678,0.31456927,635.79,634.19,0.28922582]
[1739286262877,0.31456927,635.79,634.2,0.28922582]
[1739286263178,0.31456927,635.79,634.21,0.28922582]
[1739286263378,0.31456927,635.79,634.22,0.28922582]
[1739286263577,0.31456927,635.79,634.23,0.28922582]
[1739286264076,0.26813998,635.78,634.24,0.28922582]
[1739286264277,0.26813998,635.78,634.21,0.28922582]
[1739286264477,0.26813998,635.78,634.18,0.31536787]
[1739286264670,0.26813998,635.78,634.19,0.28922582]
[1739286267078,0.31458411,635.76,634.19,0.28922582]
[1739286267279,0.26813998,635.75,634.19,0.28922582]
[1739286267477,0.31459896,635.73,634.19,0.28922582]
[1739286267980,0.26813998,635.72,634.2,0.28922582]
[1739286268173,0.31459896,635.73,634.21,0.28922582]
[1739286268378,0.26809419,635.72,634.22,0.28922582]
[1739286268581,0.26809419,635.72,634.23,0.28922582]
[1739286268780,0.26809419,635.72,634.24,0.28922582]
[1739286268976,0.26809419,635.72,634.25,0.28922582]
[1739286269277,0.31461381,635.7,634.26,0.28922582]
[1739286269477,0.31461381,635.7,634.27,0.28922582]
[1739286269682,0.31461381,635.7,634.28,0.28922582]
[1739286269882,0.31461381,635.7,634.29,0.28922582]
[1739286270083,0.31461381,635.7,634.3,0.28922582]
[1739286270281,0.31461381,635.7,634.31,0.28922582]
[1739286270481,0.31461381,635.7,634.32,0.28922582]
[1739286270683,0.31461381,635.7,634.33,0.28922582]
[1739286270985,0.31461381,635.7,634.34,0.28922582]
[1739286271185,0.31461381,635.7,634.35,0.28922582]
[1739286271380,0.31461381,635.7,634.36,0.28922582]
[1739286271580,0.31461381,635.7,634.37,0.28922582]
[1739286271784,0.31461381,635.7,634.38,0.28922582]
[1739286271984,0.31461381,635.7,634.19,0.28922582]
[1739286272185,0.31461381,635.7,634.18,0.31536787]
[1739286272381,0.31461381,635.7,634.2,0.28922582]
[1739286272581,0.31461381,635.7,634.18,0.31536787]
[1739286272582,0.31461381,635.7,634.21,0.60457877]
[1739286272885,0.31461381,635.7,634.22,0.31534798]
[1739286273086,0.31461381,635.7,634.22,0.93304793]
[1739286273382,0.31461381,635.7,634.23,0.90688268]
[1739286273588,0.31461381,635.7,634.24,1.22222072]
[1739286273887,0.31461381,635.7,634.25,1.22221575]
[1739286274079,0.31461381,635.7,634.26,0.28918273]
[1739286274284,0.31461381,635.7,634.26,0.31532809]
[1739286274481,0.31461381,635.7,634.27,0.28918273]
[1739286274686,0.31461381,635.7,634.28,0.31531815]
[1739286274883,0.31461381,635.7,634.29,0.28918273]
[1739286276089,0.31461381,635.7,634.3,0.28918273]
[1739286276289,0.31461381,635.7,634.31,0.28918273]
[1739286276484,0.31461381,635.7,634.32,0.31529827]
[1739286276691,0.31461381,635.7,634.33,0.28918273]
[1739286276891,0.31461381,635.7,634.34,0.31528833]
[1739286277093,0.31461381,635.7,634.35,0.28918273]
[1739286277291,0.31461381,635.7,634.36,0.28917473]
[1739286277485,0.31461381,635.7,634.37,0.28917473]
[1739286277691,0.31461381,635.7,634.35,0.28917473]
[1739286277889,0.31461381,635.7,634.36,0.28917473]
[1739286278195,0.31461381,635.7,634.37,0.28917473]
[1739286278394,0.31461381,635.7,634.38,0.28917473]
[1739286278889,0.31461381,635.7,634.35,0.28917473]
[1739286279093,0.31461381,635.7,634.36,0.28917473]
[1739286279294,0.31461381,635.7,634.37,0.28917473]
[1739286279790,0.31461381,635.7,634.35,0.28917473]
[1739286279993,0.31461381,635.7,634.36,0.28917473]
[1739286280190,0.31461381,635.7,634.37,0.28919341]
[1739286280391,0.31461381,635.7,634.38,0.28919341]
[1739286280897,0.31461381,635.7,634.39,0.28919341]
[1739286281096,0.31461381,635.7,634.35,0.28919341]
[1739286283794,0.31461381,635.7,634.36,0.28929966]
[1739286284099,0.26774982,635.69,634.37,0.28929966]
[1739286284300,0.26774982,635.69,634.35,0.28929966]
[1739286284501,0.26774982,635.69,634.36,0.28929966]
[1739286284696,0.31462865,635.67,634.35,0.28929966]
[1739286284897,0.26774982,635.66,634.36,0.28929966]
[1739286285098,0.26774982,635.66,634.37,0.28929966]
[1739286285297,0.3146435,635.64,634.38,0.28929966]
[1739286285596,0.26776214,635.63,634.39,0.2893158]
[1739286285800,0.26776214,635.63,633.95,0.2893158]
[1739286286000,0.26776214,635.63,633.96,0.2893158]
[1739286286197,0.3146435,635.64,633.93,0.2893158]
[1739286286996,0.3146435,635.64,634.14,1.16597008]
[1739286287199,0.3146435,635.64,634.15,0.2893158]
[1739286287400,0.3146435,635.64,634.14,1.16597008]
[1739286287598,0.3146435,635.64,634.15,0.28935785]
[1739286289405,0.3146435,635.64,634.15,0.90726147]
[1739286289605,0.3146435,635.64,634.16,0.28935785]
[1739286289806,0.3146435,635.64,634.17,0.28935785]
[1739286290000,0.3146435,635.64,634.18,0.28935785]
[1739286290206,0.3146435,635.64,634.19,0.28935785]
[1739286290406,0.3146435,635.64,634.01,0.90726147]
[1739286290601,0.3146435,635.64,634.02,0.90726147]
[1739286290807,0.3146435,635.64,634.03,1.22270395]
[1739286291105,0.3146435,635.64,634.04,1.22263719]
[1739286291305,0.3146435,635.64,634.0,1.16597008]
[1739286291306,0.3146435,635.64,634.05,0.60472024]
[1739286291505,0.3146435,635.64,634.06,0.28928771]
[1739286291706,0.3146435,635.64,634.07,0.28928771]
[1739286291907,0.3146435,635.64,634.08,0.60470532]
[1739286292206,0.3146435,635.64,634.09,0.90719968]
[1739286292406,0.3146435,635.64,634.3,1.16597008]
[1739286292609,0.3146435,635.64,634.31,0.90719968]
[1739286292901,0.3146435,635.64,634.32,0.28928771]
[1739286293106,0.3146435,635.64,634.33,0.28928771]
[1739286293307,0.3146435,635.64,634.34,0.28928771]
[1739286293503,0.3146435,635.64,634.35,0.28919898]
[1739286293707,0.3146435,635.64,634.36,0.28919898]
[1739286293902,0.3146435,635.64,634.37,0.28919898]
[1739286294107,0.3146435,635.64,634.38,0.28919898]
[1739286294303,0.3146435,635.64,634.39,0.28919898]
[1739286294503,0.3146435,635.64,634.4,0.28919898]
[1739286294708,0.3146435,635.64,634.41,0.28920133]
[1739286294910,0.3146435,635.64,634.42,0.28920133]
[1739286295107,0.3146435,635.64,634.32,0.28920133]
[1739286295307,0.3146435,635.64,634.31,0.61773737]
[1739286295308,0.3146435,635.64,634.55,1.16597008]
[1739286295508,0.3146435,635.64,634.56,0.28920133]
[1739286298413,0.3146435,635.64,634.57,0.28920133]
[1739286298607,0.3146435,635.64,634.43,0.28920133]
[1739286298807,0.3146435,635.64,634.44,0.28920133]
[1739286299008,0.3146435,635.64,634.42,1.16597008]
[1739286299009,0.3146435,635.64,634.43,0.28920133]
[1739286299205,0.3146435,635.64,634.42,1.16597008]
[1739286299206,0.3146435,635.64,634.44,0.28922818]
[1739286299406,0.3146435,635.64,634.43,0.28922818]
[1739286299611,0.3146435,635.64,634.44,0.28922818]
[1739286299806,0.3146435,635.64,634.45,0.28922818]
[1739286300111,0.3146435,635.64,634.44,1.16597008]
[1739286300309,0.3146435,635.64,634.45,0.28922818]
[1739286302007,0.26804031,635.63,634.45,0.28922818]
[1739286302210,0.31465835,635.61,634.45,0.28922818]
[1739286302714,0.31465835,635.61,634.46,0.28922818]
[1739286302910,0.31465835,635.61,634.33,0.28922818]
[1739286303112,0.31465835,635.61,634.32,0.28922818]
[1739286303312,0.31465835,635.61,634.33,0.28922818]
[1739286303511,0.31465835,635.61,634.32,0.28922818]
[1739286303814,0.31465835,635.61,634.33,0.28922818]
[1739286304015,0.31465835,635.61,634.34,0.28922818]
[1739286304212,0.31465835,635.61,634.35,0.28922818]
[1739286304416,0.31465835,635.61,634.36,0.28922818]
[1739286304716,0.31465835,635.61,634.37,0.6045016]
[1739286304916,0.31465835,635.61,634.38,0.60449663]
[1739286305109,0.31465835,635.61,634.39,0.31526348]
[1739286305315,0.31465835,635.61,634.4,0.28910072]
[1739286305514,0.31465835,635.61,634.41,0.28910072]
[1739286305713,0.31465835,635.61,634.42,0.28910072]
[1739286306015,0.31465835,635.61,634.43,0.60434432]
[1739286306209,0.31465835,635.61,634.44,1.22187385]
[1739286306412,0.31465835,635.61,634.45,0.90663522]
[1739286306613,0.31465835,635.61,634.45,0.28910072]
[1739286306819,0.31465835,635.61,634.69,1.16597008]
[1739286307415,0.31465835,635.61,634.7,0.28919109]
[1739286309215,0.31465835,635.61,634.45,0.28919109]
[1739286309413,0.31465835,635.61,634.46,0.28919109]
[1739286309614,0.31465835,635.61,634.47,0.28919109]
[1739286309810,0.31465835,635.61,634.45,0.28919109]
[1739286310015,0.31465835,635.61,634.44,0.31523863]
[1739286310215,0.31465835,635.61,634.45,0.28919109]
[1739286310616,0.31465835,635.61,634.46,0.28919109]
[1739286310812,0.31465835,635.61,634.47,0.28919109]
[1739286311014,0.31465835,635.61,634.48,0.28919109]
[1739286311215,0.31465835,635.61,634.49,0.28919109]
[1739286311416,0.31465835,635.61,634.5,0.28919109]
[1739286311615,0.31465835,635.61,634.51,0.60439494]
[1739286311815,0.31465835,635.61,634.52,0.90682124]
[1739286312017,0.31465835,635.61,634.53,0.90682124]
[1739286312218,0.31465835,635.61,634.54,0.28919109]
[1739286312415,0.31465835,635.61,634.55,0.28919109]
[1739286312620,0.31465835,635.61,634.56,0.28919109]
[1739286312820,0.31465835,635.61,634.57,0.28919109]
[1739286313021,0.31465835,635.61,634.58,0.28919109]
[1739286313225,1.39241872,636.65,634.59,0.31516412]
[1739286313520,0.3141937,636.55,634.6,0.28919109]
[1739286313723,0.26842082,636.54,634.67,1.16597008]
[1739286313921,0.26842082,636.54,634.68,0.28919109]
[1739286314116,0.3142085,636.52,634.69,0.28903941]
[1739286314324,0.26845168,636.51,634.68,0.28903941]
[1739286314524,0.31422331,636.49,634.69,0.28903941]
[1739286314823,0.26845168,636.48,634.7,0.28903941]
[1739286315025,0.31423812,636.46,634.68,0.28903941]
[1739286315226,0.26845168,636.45,634.68,0.28903941]
[1739286315427,0.31425294,636.43,634.68,0.28903941]
[1739286315623,0.26845168,636.42,634.68,0.28903941]
[1739286315823,0.31426775,636.4,634.67,1.16597008]
[1739286316018,0.31426775,636.4,634.69,0.28909209]
[1739286316223,0.2684155,636.39,634.7,0.28909209]
[1739286316426,0.2684155,636.39,634.71,0.28909209]
[1739286316617,0.31428257,636.37,634.72,0.28909209]
[1739286316822,0.31428257,636.37,634.73,0.28909209]
[1739286316823,0.2684155,636.36,634.73,0.28909209]
[1739286317025,0.2684155,636.36,634.74,0.28909209]
[1739286317216,0.2684155,636.36,634.75,0.28909209]
[1739286317421,0.2684155,636.36,634.6,0.28909209]
[1739286317622,0.2684155,636.36,634.76,0.28909209]
[1739286317825,0.31428257,636.37,634.59,0.31516412]
[1739286318026,0.26840793,636.35,634.77,0.28908856]
[1739286318221,0.26840793,636.34,634.78,0.28908856]
[1739286318426,0.26840793,636.36,634.6,0.28908856]
[1739286318621,0.26840793,636.35,634.59,0.31516412]
[1739286318823,0.26840793,636.36,634.6,0.28908856]
[1739286319026,0.31428257,636.37,634.6,0.28908856]
[1739286319728,0.31428257,636.37,634.61,0.31515418]
[1739286319929,0.31428257,636.37,634.62,0.28908856]
[1739286320627,0.31428257,636.37,634.63,0.31514425]
[1739286320829,0.26845406,636.36,634.64,0.28908856]
[1739286321223,0.31429738,636.34,634.64,0.28908856]
[1739286321421,0.26845406,636.33,634.64,0.28908856]
[1739286321626,0.3143122,636.31,634.64,0.28908856]
[1739286321824,0.26843743,636.3,634.64,0.28908856]
[1739286322622,0.26843743,636.3,634.65,0.28908856]
[1739286322826,0.26843743,636.3,634.66,0.28908856]
[1739286323021,0.31432702,636.28,634.66,0.90648318]
[1739286323224,0.26843743,636.27,634.64,0.28908856]
[1739286323426,0.31434184,636.25,634.65,0.28908856]
[1739286323629,0.26843743,636.24,634.66,0.28908856]
[1739286323826,0.26843743,636.24,634.67,0.28908856]
[1739286324029,0.26843743,636.24,634.68,0.28908856]
[1739286324228,0.31435666,636.22,634.69,0.28908856]
[1739286324425,0.26843743,636.21,634.69,0.28908856]
[1739286324622,0.31437149,636.19,634.7,0.28908856]
[1739286324827,0.31437149,636.19,634.64,0.28908856]
[1739286325022,0.31437149,636.19,634.71,0.28908856]
[1739286325328,0.31437149,636.19,634.72,0.28908856]
[1739286325727,0.31437149,636.19,634.73,0.28908856]
[1739286325923,0.31437149,636.19,634.65,0.28908856]
[1739286326124,0.31437149,636.19,634.66,0.28908856]
[1739286326324,0.31437149,636.19,634.67,0.28908856]
[1739286326525,0.31437149,636.19,634.63,0.31514425]
[1739286326526,0.31437149,636.19,634.68,0.28908856]
[1739286326724,0.31437149,636.19,634.69,0.28908856]
[1739286326924,0.31437149,636.19,634.7,0.28908856]
[1739286327227,0.31437149,636.19,634.71,0.28908856]
[1739286327427,0.31437149,636.19,634.66,0.28908856]
[1739286327624,0.31437149,636.19,634.67,0.28908856]
[1739286328030,0.31437149,636.19,634.68,0.28908856]
[1739286328228,0.31437149,636.19,634.69,0.31511446]
[1739286328428,0.31437149,636.19,634.7,0.28908856]
[1739286328629,0.31437149,636.19,634.71,0.31510453]
[1739286328826,0.31437149,636.19,634.72,0.28897894]
[1739286329035,0.31437149,636.19,634.73,0.28897894]
[1739286329229,0.31437149,636.19,634.74,0.28897894]
[1739286329433,0.31437149,636.19,634.72,0.28897894]
[1739286329628,0.31437149,636.19,634.71,0.31510453]
[1739286329828,0.31437149,636.19,634.72,0.28897894]
[1739286330429,0.31437149,636.19,634.73,0.28897894]
[1739286330633,0.31437149,636.19,634.74,0.28897894]
[1739286330930,0.31437149,636.19,634.75,0.28897894]
[1739286331132,0.31437149,636.19,634.76,0.28897894]
[1739286331330,0.31437149,636.19,634.77,0.28897894]
[1739286331534,0.31437149,636.19,634.72,0.28897894]
[1739286331728,0.31437149,636.19,634.73,0.28897894]
[1739286331932,0.31437149,636.19,634.74,0.28897894]
[1739286332133,0.31437149,636.19,634.75,0.28897894]
[1739286332329,0.31437149,636.19,634.71,0.31510453]
[1739286332330,0.31437149,636.19,634.76,0.28897894]
[1739286332529,0.31437149,636.19,634.77,0.28901742]
[1739286332828,0.31437149,636.19,634.78,0.28901742]
[1739286333035,0.31437149,636.19,634.79,0.28901742]
[1739286333336,0.31437149,636.19,634.8,0.28901742]
[1739286333529,0.26877615,636.18,634.73,0.28901742]
[1739286333728,0.26877615,636.18,634.71,0.31510453]
[1739286333729,0.31438631,636.16,634.72,0.28901742]
[1739286333929,0.26877615,636.15,634.71,0.31510453]
[1739286334234,0.26877615,636.15,634.72,0.28901742]
[1739286335028,0.31440114,636.13,634.72,0.28901742]
[1739286335229,0.26877615,636.12,634.72,0.28901742]
[1739286335432,0.31441597,636.1,634.72,0.28901742]
[1739286335634,0.26877615,636.09,634.72,0.28901742]
[1739286335834,0.3144308,636.07,634.72,0.28901742]
[1739286336035,0.3144308,636.07,634.67,1.16597008]
[1739286336235,0.2685951,636.06,634.68,0.28913829]
[1739286336428,0.31444563,636.04,634.68,0.28913829]
[1739286337439,0.26865282,636.03,634.68,0.28913829]
[1739286337636,0.31446046,636.01,634.44,0.28913829]
[1739286337938,0.26865282,636.0,634.45,0.28913829]
[1739286338140,0.31447529,635.98,634.44,0.28913829]
[1739286338438,0.26865282,635.97,634.45,0.28913829]
[1739286338640,0.31449013,635.95,634.46,0.28913829]
[1739286338840,0.26865282,635.94,634.47,0.28913829]
[1739286339046,0.31450496,635.92,634.48,0.28913829]
[1739286339246,0.26865282,635.91,634.44,0.28913829]
[1739286339444,0.3145198,635.89,634.45,0.28913829]
[1739286339840,0.26865282,635.88,634.46,0.28913829]
[1739286340041,0.31453464,635.86,634.44,0.28913829]
[1739286340242,0.26865282,635.85,634.44,0.28913829]
[1739286340548,0.31454948,635.83,634.44,0.28913829]
[1739286340745,0.26865282,635.82,634.39,0.28913829]
[1739286341047,0.31456432,635.8,634.4,0.28913829]
[1739286341246,0.26865282,635.79,634.39,0.28913829]
[1739286341546,0.26865282,635.79,634.38,1.16597008]
[1739286341547,0.31457917,635.77,634.4,0.28913829]
[1739286341742,0.26865282,635.76,634.39,0.28913829]
[1739286341943,0.31459401,635.74,634.4,0.28913829]
[1739286342140,0.26865282,635.73,634.39,0.28913829]
[1739286342544,0.31459401,635.74,634.39,0.28913829]
[1739286342840,0.26872215,635.73,634.38,1.16597008]
[1739286343039,0.31459401,635.74,634.39,0.28931767]
[1739286343241,0.31459401,635.74,634.38,1.16597008]
[1739286343447,0.2687276,635.73,634.23,1.16597008]
[1739286343749,0.2687276,635.73,634.24,0.28933118]
[1739286344148,0.31460886,635.71,634.24,0.28933118]
[1739286344449,0.2687276,635.7,634.24,0.28933118]
[1739286344649,0.31460886,635.71,634.24,0.28933118]
[1739286346047,0.31460886,635.71,633.76,1.16597008]
[1739286346048,0.31460886,635.71,633.77,0.90733166]
[1739286346348,0.31460886,635.71,633.78,0.60489809]
[1739286346547,0.31460886,635.71,633.79,0.60489311]
[1739286346744,0.31460886,635.71,633.8,0.60488813]
[1739286346949,0.31460886,635.71,633.81,0.60488315]
[1739286347151,0.31460886,635.71,633.82,0.60487818]
[1739286347554,0.26878911,635.7,633.83,0.28933118]
[1739286348452,0.31460886,635.71,633.83,0.28933118]
[1739286348646,0.31460886,635.71,633.84,0.31553704]
[1739286348851,0.26883834,635.7,633.85,0.28933118]
[1739286349151,0.31462371,635.68,633.84,0.31553704]
[1739286349353,0.26884171,635.67,633.85,0.28936927]
[1739286349654,0.31463855,635.65,633.85,0.28936927]
[1739286349852,0.26884171,635.64,633.85,0.28936927]
[1739286350048,0.3146534,635.62,633.85,0.28936927]
[1739286350252,0.26884171,635.61,633.85,0.28936927]
[1739286350454,0.31466826,635.59,633.85,0.28936927]
[1739286350655,0.26884171,635.58,633.85,0.28936927]
[1739286350849,0.31468311,635.56,633.85,0.28936927]
[1739286351046,0.31468311,635.56,633.86,0.28937511]
[1739286351248,0.31468311,635.56,633.87,0.28937511]
[1739286351448,0.31468311,635.56,633.88,0.28937511]
[1739286351651,0.31468311,635.56,633.85,0.28937511]
[1739286351848,0.31468311,635.56,633.86,0.28937511]
[1739286352046,0.31468311,635.56,633.86,0.61808868]
[1739286352351,0.26878681,635.55,633.87,0.28937511]
[1739286352553,0.31469796,635.53,633.85,0.28937511]
[1739286352748,0.31469796,635.53,633.86,0.28937511]
[1739286352948,0.31469796,635.53,633.87,0.28937511]
[1739286353148,0.31469796,635.53,633.85,0.28937511]
[1739286353453,0.31469796,635.53,633.86,0.28937511]
[1739286353653,0.31469796,635.53,633.85,0.28937511]
[1739286353855,0.31469796,635.53,633.86,0.28937511]
[1739286354149,0.31469796,635.53,633.87,0.28937511]
[1739286354355,0.31469796,635.53,633.85,0.28937511]
[1739286354553,0.31469796,635.53,633.84,0.31553704]
[1739286354554,0.31469796,635.53,633.86,0.28937511]
[1739286354855,0.31469796,635.53,633.87,0.28937511]
[1739286355049,0.31469796,635.53,633.85,0.28937511]
[1739286355252,0.31469796,635.53,633.86,0.28937511]
[1739286355554,0.31469796,635.53,633.87,0.28937511]
[1739286355751,0.31469796,635.53,633.88,0.28937511]
[1739286355955,0.26885442,635.52,633.89,0.28937511]
[1739286356149,0.26885442,635.52,633.85,0.28937511]
[1739286356349,0.31471282,635.5,633.9,0.28937511]
[1739286356547,0.31471282,635.5,633.86,0.28937511]
[1739286356753,0.26885442,635.49,633.87,0.28937511]
[1739286356955,0.26885442,635.49,633.85,0.28937511]
[1739286357155,0.31472768,635.47,633.86,0.28937511]
[1739286357356,0.26885442,635.46,633.46,0.90781464]
[1739286357549,0.31474254,635.44,633.47,0.60509645]
[1739286357751,0.26885442,635.43,633.48,0.60509147]
[1739286357955,0.3147574,635.41,633.49,0.28937511]
[1739286358152,0.26885442,635.4,633.5,0.28937511]
[1739286358350,0.31477226,635.38,633.48,0.31571636]
[1739286358551,0.2687819,635.37,633.49,0.28955329]
[1739286358753,0.31478712,635.35,633.5,0.28955329]
[1739286358955,0.2687819,635.34,633.51,0.28955329]
[1739286359156,0.31480198,635.32,633.52,0.28955329]
[1739286359356,0.2687819,635.31,633.49,0.28955329]
[1739286359555,0.2687819,635.31,633.48,1.22371841]